bitfinex/quotes_BTCUSD_20250711
["timestamp","ask_amount","ask_price","bid_price","bid_amount"]
[1752251102110,0.03897453,117200.0,117190.0,0.07615713]
[1752251102310,0.04750695,117200.0,117190.0,0.07615713]
[1752251102519,0.19255961,117200.0,117190.0,0.21415713]
[1752251102720,0.20735408,117200.0,117190.0,0.21415713]
[1752251103124,0.20734408,117200.0,117190.0,0.07615713]
[1752251103332,0.23024408,117200.0,117190.0,0.07615713]
[1752251103532,0.23024408,117200.0,117190.0,0.21415713]
[1752251103729,0.22171173,117200.0,117190.0,0.21415713]
[1752251104580,0.22171173,117200.0,117190.0,0.07615713]
[1752251104762,0.22171173,117200.0,117190.0,0.21415713]
[1752251105221,0.22171173,117200.0,117190.0,0.07615713]
[1752251105419,0.22171173,117200.0,117190.0,0.21411713]
[1752251106200,0.02171173,117200.0,117190.0,0.21411713]
[1752251106401,0.02437811,117200.0,117190.0,0.13796]
[1752251106603,0.0170652,117190.0,117170.0,0.28091713]
[1752251106809,0.1904118,117180.0,117170.0,0.07615713]
[1752251107047,0.18774497,117180.0,117170.0,0.07615713]
[1752251107250,0.02560243,117170.0,117160.0,0.21611713]
[1752251107426,0.02826949,117170.0,117160.0,0.21934713]
[1752251107889,0.03580402,117170.0,117160.0,0.21934713]
[1752251108234,0.19042834,117170.0,117160.0,0.07815713]
[1752251108471,0.17067759,117180.0,117160.0,0.08028713]
[1752251108701,0.00853336,117180.0,117170.0,0.6814061]
[1752251108954,0.01706694,117180.0,117170.0,0.08144713]
[1752251109162,0.03413426,117180.0,117170.0,0.14112]
[1752251109368,0.02560031,117180.0,117170.0,0.21940713]
[1752251109600,0.0170668,117180.0,117170.0,0.21940713]
[1752251109833,0.00853336,117180.0,117170.0,0.21940713]
[1752251110092,0.34853271,117190.0,117170.0,0.39009851]
[1752251110311,0.16355558,117200.0,117180.0,0.05076]
[1752251110529,0.0426602,117200.0,117190.0,0.06107902]
[1752251110736,0.04266006,117200.0,117180.0,0.08833902]
[1752251110958,0.40740013,117210.0,117190.0,0.00521]
[1752251111165,0.01706374,117200.0,117190.0,0.00521]
[1752251111378,0.01706374,117200.0,117190.0,0.06628902]
[1752251111785,0.02559587,117200.0,117190.0,0.06628902]
[1752251111998,0.03412814,117200.0,117190.0,0.06423902]
[1752251112193,0.03412814,117200.0,117190.0,0.06107902]
[1752251112194,0.20744357,117200.0,117190.0,0.06107902]
[1752251112349,0.20477719,117200.0,117190.0,0.06107902]
[1752251112560,0.22545393,117200.0,117190.0,0.06107902]
[1752251112801,0.24915393,117200.0,117190.0,0.06107902]
[1752251113547,0.24915393,117200.0,117190.0,0.06117902]
[1752251113690,0.25115393,117200.0,117190.0,0.06117902]
[1752251113914,0.25215393,117200.0,117190.0,0.06117902]
[1752251114516,1.19556996,117200.0,117190.0,0.06117902]
[1752251114708,0.24083687,117190.0,117180.0,0.06107902]
[1752251114945,0.9821329,117190.0,117180.0,0.06107902]
[1752251115362,1.3221329,117190.0,117180.0,0.06107902]
[1752251116409,0.7956138,117190.0,117180.0,0.07615713]
[1752251116851,0.24125217,117180.0,117170.0,0.07615713]
[1752251117477,0.20228583,117180.0,117170.0,0.07615713]
[1752251117697,0.34016583,117180.0,117170.0,0.07615713]
[1752251117903,0.23351099,117180.0,117160.0,0.1883688]
[1752251118108,0.23351099,117180.0,117160.0,0.08157381]
[1752251118109,0.01973554,117170.0,117160.0,0.08157381]
[1752251118321,0.03680423,117170.0,117160.0,0.08362381]
[1752251118523,0.02827028,117170.0,117160.0,0.08157381]
[1752251118727,0.19042812,117170.0,117160.0,0.07841381]
[1752251118932,0.18776106,117170.0,117160.0,0.002]
[1752251120293,0.17922668,117170.0,117160.0,0.002]
[1752251120496,0.19476753,117170.0,117160.0,0.002]
[1752251120698,0.24256753,117170.0,117160.0,0.0021]
[1752251120912,0.19476753,117170.0,117160.0,0.0021]
[1752251121113,0.04114364,117170.0,117160.0,0.00731]
[1752251121271,0.35234285,117170.0,117160.0,0.00731]
[1752251121486,0.3411417,117170.0,117160.0,0.0021]
[1752251121682,0.33260746,117170.0,117160.0,0.0021]
[1752251122863,0.33260746,117170.0,117160.0,0.00077874]
[1752251123411,0.2138363,117170.0,117160.0,0.00077874]
[1752251123683,0.18098415,117170.0,117160.0,0.00393874]
[1752251123958,0.32860041,117170.0,117160.0,0.00598874]
[1752251124254,0.17497724,117170.0,117160.0,0.00598874]
[1752251124516,0.003,117170.0,117160.0,0.57327484]
[1752251124772,0.15790812,117170.0,117160.0,0.57327484]
[1752251125025,0.02860221,117170.0,117160.0,0.05528874]
[1752251125596,0.003,117170.0,117160.0,0.58181017]
[1752251125848,0.003,117170.0,117160.0,0.85453619]
[1752251126120,0.003,117170.0,117160.0,1.08634094]
[1752251126372,0.003,117170.0,117160.0,1.0863405]
[1752251127047,0.003,117170.0,117160.0,1.00992669]
[1752251127254,0.001,117170.0,117160.0,1.00992669]
[1752251127469,0.001,117170.0,117160.0,1.01092669]
[1752251127671,0.34,117200.0,117180.0,0.22027484]
[1752251127874,0.51192851,117200.0,117180.0,0.0496]
[1752251128093,0.52190873,117200.0,117190.0,0.00521]
[1752251128306,0.36704469,117200.0,117190.0,0.08173221]
[1752251128524,0.38410901,117200.0,117190.0,0.08173221]
[1752251129162,0.55475805,117200.0,117190.0,0.07968221]
[1752251129373,0.55475805,117200.0,117190.0,0.07652221]
[1752251129580,0.546226,117200.0,117190.0,0.07652221]
[1752251130854,0.547226,117200.0,117190.0,0.07652221]
[1752251131061,0.547226,117200.0,117190.0,0.07968221]
[1752251131275,0.546226,117200.0,117190.0,0.00316]
[1752251131480,0.53769373,117200.0,117190.0,0.00316]
[1752251132789,0.53969373,117200.0,117190.0,0.00316]
[1752251133485,0.54069373,117200.0,117190.0,0.00316]
[1752251133714,0.02559864,117190.0,117180.0,0.24771499]
[1752251133977,0.03679795,117190.0,117180.0,0.24976499]
[1752251134185,0.20746097,117190.0,117180.0,0.24976499]
[1752251134395,0.03413121,117190.0,117180.0,0.29796499]
[1752251134580,0.02826481,117190.0,117180.0,0.29796499]
[1752251134834,0.0026666,117190.0,117180.0,0.81595109]
[1752251135065,0.01119924,117190.0,117180.0,0.81595109]
[1752251135523,0.01119909,117190.0,117180.0,0.81595109]
[1752251136015,0.001,117190.0,117180.0,1.00369607]
[1752251136243,0.001,117190.0,117180.0,1.10619294]
[1752251136469,0.01926244,117210.0,117200.0,0.049]
[1752251136697,0.02991207,117210.0,117200.0,0.78332917]
[1752251136920,0.00234934,117210.0,117200.0,0.88056456]
[1752251137162,0.00234934,117210.0,117200.0,0.99159088]
[1752251137634,0.00334934,117210.0,117200.0,0.99159088]
[1752251138073,0.00234934,117210.0,117200.0,0.99159088]
[1752251138288,0.00234934,117210.0,117200.0,0.99259088]
[1752251138950,0.00234934,117210.0,117200.0,1.01127927]
[1752251139193,0.00234934,117210.0,117200.0,0.62766478]
[1752251139402,0.00234934,117210.0,117200.0,1.14565088]
[1752251139658,0.00234934,117210.0,117200.0,1.14465088]
[1752251139875,0.00234934,117210.0,117200.0,0.99459088]
[1752251140110,0.00234934,117210.0,117200.0,0.99459095]
[1752251140320,0.01088052,117210.0,117200.0,0.28031993]
[1752251140552,0.00234934,117210.0,117200.0,0.28031993]
[1752251140784,0.01088052,117210.0,117200.0,0.25671993]
[1752251141014,0.02794317,117210.0,117200.0,0.25671993]
[1752251141265,0.21564023,117210.0,117200.0,0.11307107]
[1752251141511,0.19857765,117210.0,117200.0,0.10991107]
[1752251141748,0.02794375,117210.0,117200.0,0.10991107]
[1752251141977,0.20977484,117210.0,117200.0,0.11309107]
[1752251142249,0.20458725,117210.0,117200.0,0.10991107]
[1752251142451,0.2295046,117210.0,117200.0,0.18626125]
[1752251142664,0.2305046,117210.0,117200.0,0.07635018]
[1752251142874,0.22197313,117210.0,117200.0,0.07635018]
[1752251143766,0.19697313,117210.0,117200.0,0.07635018]
[1752251143979,0.00326669,117210.0,117200.0,0.07635018]
[1752251144189,0.00326669,117210.0,117200.0,0.08148018]
[1752251144190,0.00593284,117210.0,117200.0,0.08148018]
[1752251144410,0.00326669,117210.0,117200.0,0.08148018]
[1752251144652,0.00326669,117210.0,117200.0,0.84351127]
[1752251144886,0.00326669,117210.0,117200.0,0.92040929]
[1752251145114,0.00326669,117210.0,117200.0,0.8696552]
[1752251145329,0.00326669,117210.0,117200.0,0.97656627]
[1752251146213,0.00326669,117210.0,117200.0,0.97649585]
[1752251146642,0.00326669,117210.0,117200.0,0.8696552]
[1752251146862,0.0025,117230.0,117220.0,0.2352809]
[1752251147134,0.0025,117230.0,117220.0,1.06307219]
[1752251147660,0.0025,117230.0,117220.0,1.09677011]
[1752251147899,0.0025,117230.0,117220.0,1.12235211]
[1752251149082,0.0025,117230.0,117220.0,1.09677062]
[1752251149317,0.0025,117230.0,117220.0,1.09677077]
[1752251149810,0.0025,117230.0,117220.0,1.11383218]
[1752251150026,0.0025,117230.0,117220.0,1.10530151]
[1752251150273,0.0025,117230.0,117220.0,1.11383167]
[1752251150748,0.0025,117230.0,117220.0,1.08823981]
[1752251150999,0.0025,117230.0,117220.0,0.11194273]
[1752251151000,0.03661941,117230.0,117220.0,0.11194273]
[1752251151242,1.35918846,117230.0,117220.0,0.14467146]
[1752251151423,0.56915016,117220.0,117210.0,0.06770203]
[1752251151674,1.17256619,117220.0,117210.0,0.06770203]
[1752251151893,0.79214009,117220.0,117210.0,0.05917538]
[1752251152342,0.79214009,117220.0,117210.0,0.05064873]
[1752251152555,0.65458009,117220.0,117210.0,0.05064873]
[1752251152789,0.60458009,117220.0,117210.0,0.04212208]
[1752251153004,0.74210009,117220.0,117210.0,0.04212208]
[1752251154290,0.75664094,117220.0,117210.0,0.04212208]
[1752251156798,0.75764094,117220.0,117210.0,0.04212208]
[1752251158220,0.35554085,117220.0,117210.0,0.04212208]
[1752251158427,0.52714296,117220.0,117210.0,0.04725208]
[1752251158579,0.52714296,117220.0,117210.0,0.04530208]
[1752251158815,0.51865214,117220.0,117210.0,0.04530208]
[1752251159025,0.52718339,117220.0,117210.0,0.00318]
[1752251159222,0.68074175,117220.0,117210.0,0.00318]
[1752251159427,0.00853104,117210.0,117200.0,0.11014062]
[1752251159629,0.01119719,117210.0,117200.0,0.11209062]
[1752251160342,0.00266615,117210.0,117200.0,0.11209062]
[1752251160610,0.00366615,117210.0,117200.0,0.11209062]
[1752251160811,0.00366615,117210.0,117200.0,0.12062304]
[1752251160929,0.001,117210.0,117200.0,0.29980385]
[1752251161139,0.35454085,117220.0,117200.0,0.67777672]
[1752251161140,0.49454112,117220.0,117200.0,0.67777672]
[1752251161341,0.50307194,117220.0,117210.0,0.11020782]
[1752251161548,0.49454112,117220.0,117210.0,0.11020782]
[1752251161749,0.50307201,117220.0,117210.0,0.00318]
[1752251161949,0.51160297,117220.0,117210.0,0.00318]
[1752251162157,0.67369186,117220.0,117210.0,0.00318]
[1752251162375,0.49454156,117220.0,117210.0,0.1102344]
[1752251162785,0.67369186,117220.0,117210.0,0.1102344]
[1752251162990,0.67970204,117220.0,117210.0,0.1070544]
[1752251163368,1.33391807,117220.0,117210.0,0.18355278]
[1752251163571,1.33391807,117220.0,117210.0,0.07649838]
[1752251164613,0.81593197,117220.0,117210.0,0.07649838]
[1752251166351,0.67845197,117220.0,117210.0,0.07649838]
[1752251166581,0.81589197,117220.0,117210.0,0.07649838]
[1752251167450,1.33387807,117220.0,117210.0,0.07649838]
[1752251167886,0.81589197,117220.0,117210.0,0.07649838]
[1752251168102,1.33387807,117220.0,117210.0,0.07649838]
[1752251168316,1.33387807,117220.0,117200.0,0.1070544]
[1752251168317,0.54396544,117210.0,117200.0,0.07649838]
[1752251168512,0.63792684,117210.0,117200.0,0.07649838]
[1752251168731,0.21078532,117200.0,117190.0,0.1070544]
[1752251168957,0.0316051,117200.0,117190.0,0.1070544]
[1752251169175,0.22198449,117200.0,117190.0,0.1070544]
[1752251169376,0.03160459,117200.0,117190.0,0.1102644]
[1752251169585,0.03160459,117200.0,117190.0,0.29141057]
[1752251169586,0.01720723,117200.0,117190.0,0.29141057]
[1752251169787,0.15460723,117200.0,117190.0,0.1122144]
[1752251169941,0.15460723,117200.0,117190.0,0.00516]
[1752251170148,0.14593176,117200.0,117190.0,0.05526]
[1752251170400,0.39058693,117210.0,117190.0,0.33405517]
[1752251170541,0.1374,117200.0,117190.0,0.16018262]
[1752251170736,0.16566218,117200.0,117190.0,0.5710361]
[1752251171008,0.34484291,117200.0,117190.0,0.00295]
[1752251171159,0.33965371,117200.0,117190.0,0.1081329]
[1752251171561,0.33965371,117200.0,117190.0,0.00421]
[1752251172185,0.33965371,117200.0,117190.0,0.001]
[1752251172386,0.33112158,117200.0,117190.0,0.001]
[1752251172616,0.84198144,117200.0,117190.0,0.001]
[1752251172852,0.75655151,117200.0,117190.0,0.001]
[1752251173443,0.67112158,117200.0,117190.0,0.001]
[1752251173647,0.00853249,117190.0,117180.0,0.16177843]
[1752251173889,0.02826459,117190.0,117180.0,0.16376843]
[1752251174184,0.20746127,117190.0,117180.0,0.11446843]
[1752251174398,0.20479467,117190.0,117180.0,0.11446843]
[1752251174525,0.23044115,117190.0,117180.0,0.11446843]
[1752251174723,0.32187907,117190.0,117180.0,0.10926843]
[1752251175152,0.32187907,117190.0,117180.0,0.00214934]
[1752251175816,0.773109,117190.0,117180.0,0.00314934]
[1752251176015,0.68767907,117190.0,117180.0,0.07962519]
[1752251176843,0.68767907,117190.0,117180.0,0.07862519]
[1752251177498,1.22946517,117190.0,117180.0,0.00214934]
[1752251179374,0.74619742,117180.0,117170.0,0.07647585]
[1752251179585,1.10630735,117180.0,117170.0,0.07647585]
[1752251179839,0.53376746,117170.0,117160.0,0.07725459]
[1752251180037,0.61919739,117170.0,117160.0,0.07725459]
[1752251181452,0.62019739,117170.0,117160.0,0.07725459]
[1752251185084,0.77458637,117170.0,117160.0,0.07725459]
[1752251185644,0.57458637,117170.0,117160.0,0.07725459]
[1752251185894,0.75381298,117170.0,117160.0,0.00077874]
[1752251186371,0.61649298,117170.0,117160.0,0.00077874]
[1752251186616,0.75381298,117170.0,117160.0,0.00077874]
[1752251187511,0.75981945,117170.0,117160.0,0.00077874]
[1752251188827,0.33476746,117170.0,117160.0,0.00597874]
[1752251189044,0.49764982,117170.0,117160.0,0.05507874]
[1752251189278,0.50618428,117170.0,117160.0,0.05507874]
[1752251189505,0.49764982,117170.0,117160.0,0.05507874]
[1752251189917,0.5061842,117170.0,117160.0,0.05507874]
[1752251190117,0.49764982,117170.0,117160.0,0.05507874]
[1752251190579,0.5061842,117170.0,117160.0,0.05507874]
[1752251190808,0.49764996,117170.0,117160.0,0.03017874]
[1752251191440,0.50618449,117170.0,117160.0,0.03017874]
[1752251191881,0.66834312,117170.0,117160.0,0.00597874]
[1752251192524,0.75977952,117170.0,117160.0,0.00398874]
[1752251194576,0.75977952,117170.0,117160.0,0.00077874]
[1752251194779,1.32736562,117170.0,117160.0,0.00077874]
[1752251196579,0.20233375,117150.0,117140.0,0.002]
[1752251196787,0.42496368,117150.0,117140.0,0.002]
[1752251197042,1.30794978,117150.0,117140.0,0.002]
[1752251197253,1.33304978,117150.0,117140.0,0.002]
[1752251197873,1.33304978,117150.0,117140.0,0.0024982]
[1752251198534,0.81506368,117150.0,117140.0,0.0024982]
[1752251199095,1.33404978,117150.0,117140.0,0.0024982]
[1752251199297,1.33404978,117150.0,117120.0,0.00521]
[1752251199298,0.20236581,117130.0,117120.0,0.00521]
[1752251199550,0.42495574,117130.0,117120.0,0.00521]
[1752251199762,0.42495574,117130.0,117120.0,0.0072]
[1752251200133,0.45017241,117130.0,117120.0,0.11422515]
[1752251200330,0.44163526,117130.0,117120.0,0.18868681]
[1752251200593,0.44163526,117130.0,117120.0,0.08166166]
[1752251201467,0.44163526,117130.0,117120.0,0.00521]
[1752251201672,0.3485365,117140.0,117120.0,0.05702]
[1752251201846,0.13716,117130.0,117120.0,0.53053435]
[1752251202074,0.13716,117130.0,117120.0,0.6375595]
[1752251202476,0.13716,117130.0,117120.0,0.6905595]
[1752251202715,0.1483649,117130.0,117120.0,0.16403515]
[1752251202918,0.13982797,117130.0,117120.0,0.16403515]
[1752251203092,0.14836483,117130.0,117120.0,0.16403515]
[1752251203303,0.05690176,117130.0,117120.0,0.13344849]
[1752251203516,0.06591267,117130.0,117120.0,0.13344849]
[1752251203736,0.08298719,117130.0,117120.0,0.13344849]
[1752251203969,0.24520077,117130.0,117120.0,0.13344849]
[1752251204147,0.24472694,117130.0,117120.0,0.13344849]
[1752251204291,0.08251402,117130.0,117120.0,0.13344849]
[1752251204484,0.07445033,117130.0,117120.0,0.13344849]
[1752251204908,0.25373821,117130.0,117120.0,0.13344849]
[1752251205108,0.24472745,117130.0,117120.0,0.13344849]
[1752251205510,0.06543957,117130.0,117120.0,0.13344849]
[1752251205707,0.06591333,117130.0,117120.0,0.13344849]
[1752251206514,0.05737603,117130.0,117120.0,0.13344849]
[1752251206719,0.0744507,117130.0,117120.0,0.13344849]
[1752251206922,0.06591326,117130.0,117120.0,0.13344849]
[1752251207123,0.0744507,117130.0,117120.0,0.13344849]
[1752251207327,0.24520114,117130.0,117120.0,0.13344849]
[1752251207539,0.24472731,117130.0,117120.0,0.13344849]
[1752251208568,0.24472724,117130.0,117120.0,0.13344849]
[1752251209794,0.23619016,117130.0,117120.0,0.10834849]
[1752251210645,0.23619016,117130.0,117120.0,0.13264849]
[1752251210646,0.14561693,117130.0,117120.0,0.13264849]
[1752251210841,0.14609076,117130.0,117120.0,0.13264849]
[1752251211462,0.15462784,117130.0,117120.0,0.13264849]
[1752251212338,0.02357389,117150.0,117130.0,0.0495]
[1752251212546,0.67433926,117150.0,117140.0,0.05471]
[1752251212759,0.68240193,117150.0,117140.0,0.05471]
[1752251212963,0.69694278,117150.0,117140.0,0.05471]
[1752251213383,0.69694278,117150.0,117140.0,0.07963849]
[1752251213384,0.67987153,117150.0,117140.0,0.07963849]
[1752251213612,0.67987153,117150.0,117140.0,0.07643849]
[1752251213840,0.79070146,117150.0,117140.0,0.07643849]
[1752251214061,0.18780908,117140.0,117130.0,0.07963849]
[1752251214289,0.18780908,117140.0,117130.0,0.00521]
[1752251214520,0.14557613,117140.0,117130.0,0.05531]
[1752251214745,0.17768565,117150.0,117140.0,0.0485]
[1752251214964,0.17768565,117150.0,117140.0,0.12700027]
[1752251214965,0.16061382,117150.0,117140.0,0.12700027]
[1752251215187,0.16208765,117150.0,117140.0,0.13020027]
[1752251215415,0.01651217,117150.0,117140.0,0.13020027]
[1752251215642,0.01651217,117150.0,117140.0,0.75950548]
[1752251215643,0.00149749,117150.0,117140.0,0.75950548]
[1752251215870,0.00149749,117150.0,117140.0,0.92211482]
[1752251216095,0.00149749,117150.0,117140.0,1.1145699]
[1752251217277,0.00049749,117150.0,117140.0,1.632556]
[1752251217522,0.002,117170.0,117160.0,0.19631184]
[1752251217750,0.002,117170.0,117160.0,1.06391332]
[1752251217979,0.002,117170.0,117160.0,0.9215785]
[1752251218206,0.01053395,117170.0,117160.0,0.26734545]
[1752251218424,0.002,117170.0,117160.0,0.26734545]
[1752251218654,0.002,117170.0,117160.0,0.13038545]
[1752251218875,0.01053409,117170.0,117160.0,0.26734545]
[1752251219107,0.0190684,117170.0,117160.0,0.26734545]
[1752251219319,0.01954223,117170.0,117160.0,0.26734545]
[1752251219536,0.02807661,117170.0,117160.0,0.26734545]
[1752251219767,0.02807676,117170.0,117160.0,0.26734545]
[1752251219990,0.21331013,117170.0,117160.0,0.08188545]
[1752251220206,0.2128363,117170.0,117160.0,0.08188545]
[1752251220417,0.2128363,117170.0,117160.0,0.07667545]
[1752251220633,0.56139216,117170.0,117160.0,0.07667545]
[1752251220856,0.64682209,117170.0,117160.0,0.07667545]
[1752251221313,0.62604877,117170.0,117160.0,0.0001494]
[1752251221758,1.16863487,117170.0,117160.0,0.0001494]
[1752251221991,1.19193487,117170.0,117160.0,0.0001494]
[1752251222666,0.67394877,117170.0,117160.0,0.0001494]
[1752251223108,0.62604877,117170.0,117160.0,0.0001494]
[1752251223333,0.64058962,117170.0,117160.0,0.0001494]
[1752251223992,0.64058962,117170.0,117160.0,0.0053594]
[1752251223993,0.78604386,117170.0,117160.0,0.0053594]
[1752251224214,0.79457795,117170.0,117160.0,0.0053594]
[1752251224431,0.61535171,117170.0,117160.0,0.0053594]
[1752251224651,0.47843171,117170.0,117160.0,0.0053594]
[1752251224902,0.67321552,117170.0,117160.0,0.0053594]
[1752251225786,0.66468121,117170.0,117160.0,0.0033494]
[1752251226008,0.67922206,117170.0,117160.0,0.0001494]
[1752251226228,1.28263809,117170.0,117160.0,0.0001494]
[1752251226453,1.30803809,117170.0,117160.0,0.0001494]
[1752251227331,1.33303809,117170.0,117160.0,0.0001494]
[1752251228693,0.81505199,117170.0,117160.0,0.0001494]
[1752251229788,0.84095581,117170.0,117160.0,0.0001494]
[1752251231319,0.67903581,117170.0,117160.0,0.0001494]
[1752251231555,0.81587581,117170.0,117160.0,0.0001494]
[1752251232121,0.79047581,117170.0,117160.0,0.0001494]
[1752251232330,0.65363581,117170.0,117160.0,0.0054694]
[1752251232595,0.79047581,117170.0,117160.0,0.0054694]
[1752251234002,0.77340675,117170.0,117160.0,0.0054694]
[1752251234211,0.77340675,117170.0,117160.0,0.0033694]
[1752251234850,0.78194121,117170.0,117160.0,0.0033694]
[1752251235028,0.68197043,117170.0,117160.0,0.0054694]
[1752251235708,0.68197043,117170.0,117160.0,0.0033694]
[1752251236353,0.78194121,117170.0,117160.0,0.0001494]
[1752251238351,0.50270382,117170.0,117160.0,0.0054694]
[1752251238578,0.37443784,117170.0,117160.0,0.0528694]
[1752251238814,0.51977208,117170.0,117160.0,0.12939545]
[1752251239056,0.00853329,117180.0,117170.0,0.0496]
[1752251239298,0.3602856,117190.0,117170.0,0.5696861]
[1752251239534,0.3575407,117180.0,117170.0,0.5729061]
[1752251239760,0.34853329,117180.0,117170.0,0.0517]
[1752251239974,0.00853329,117180.0,117170.0,0.0517]
[1752251240159,0.00900705,117180.0,117170.0,0.05492]
[1752251240421,0.00147383,117180.0,117170.0,0.12944605]
[1752251240636,0.01000705,117180.0,117170.0,0.12944605]
[1752251240851,0.00147383,117180.0,117170.0,0.64743215]
[1752251241935,0.001,117180.0,117170.0,1.10021883]
[1752251242150,0.001,117180.0,117170.0,1.10875343]
[1752251242364,0.001,117180.0,117170.0,0.92099215]
[1752251242601,0.001,117180.0,117170.0,0.92952675]
[1752251242817,0.001,117180.0,117170.0,0.92099215]
[1752251243687,0.001,117180.0,117170.0,0.92952675]
[1752251243916,0.001,117180.0,117170.0,0.92099215]
[1752251244137,0.01000719,117180.0,117170.0,0.92099215]
[1752251244412,0.01000712,117180.0,117170.0,0.92099215]
[1752251244656,0.01854056,117180.0,117170.0,0.92099215]
[1752251245086,0.18921815,117180.0,117170.0,0.40300605]
[1752251245302,0.20581163,117180.0,117170.0,0.40300605]
[1752251245516,0.02660024,117180.0,117170.0,0.40300605]
[1752251245745,0.00147383,117180.0,117170.0,0.40300605]
[1752251245966,0.01000719,117180.0,117170.0,0.40300605]
[1752251246222,0.01000712,117180.0,117170.0,0.40300605]
[1752251246673,0.01854056,117180.0,117170.0,0.40300605]
[1752251246888,0.20628539,117180.0,117170.0,0.40300605]
[1752251247110,0.02660024,117180.0,117170.0,0.40300605]
[1752251247331,0.20628532,117180.0,117170.0,0.40300605]
[1752251247538,0.01806673,117180.0,117170.0,0.32648]
[1752251247720,0.03560773,117180.0,117170.0,0.32648]
[1752251248465,0.20628532,117180.0,117170.0,0.32648]
[1752251248675,0.20581149,117180.0,117170.0,0.32648]
[1752251249524,0.02660024,117180.0,117170.0,0.32648]
[1752251249735,0.02707407,117180.0,117170.0,0.32648]
[1752251249955,0.19775166,117180.0,117170.0,0.32648]
[1752251250159,0.02660024,117180.0,117170.0,0.32648]
[1752251250369,0.01000705,117180.0,117170.0,0.40303791]
[1752251251231,0.00147383,117180.0,117170.0,0.40303791]
[1752251251453,0.00147383,117180.0,117170.0,0.92102401]
[1752251251669,0.01000705,117180.0,117170.0,0.92102401]
[1752251251892,0.00147383,117180.0,117170.0,0.92102401]
[1752251252119,0.001,117180.0,117170.0,0.8444661]
[1752251252342,0.001,117180.0,117170.0,1.04076118]
[1752251252525,0.001,117180.0,117170.0,0.51424099]
[1752251252795,0.001,117180.0,117170.0,1.04929542]
[1752251253251,0.001,117180.0,117170.0,1.15632057]
[1752251253701,0.0357566,117190.0,117180.0,0.17921132]
[1752251253922,0.0357566,117190.0,117180.0,0.82293162]
[1752251254153,0.002,117190.0,117180.0,0.843219]
[1752251255013,0.002,117190.0,117180.0,0.84321908]
[1752251255671,0.002,117190.0,117180.0,0.86028602]
[1752251255897,0.002,117190.0,117180.0,0.94571595]
[1752251256115,0.002,117190.0,117180.0,0.89860484]
[1752251256335,0.002,117190.0,117180.0,0.97620704]
[1752251256570,0.00056156,117190.0,117180.0,0.97620704]
[1752251256793,0.00900457,117220.0,117210.0,0.0464]
[1752251257009,0.00047383,117220.0,117210.0,0.8397261]
[1752251257224,0.00853031,117220.0,117210.0,0.8429461]
[1752251257435,0.34853045,117220.0,117210.0,0.8429461]
[1752251257650,0.34853038,117220.0,117210.0,0.8429461]
[1752251257898,0.34853038,117220.0,117210.0,0.32496]
[1752251258113,0.34867967,117220.0,117210.0,0.32496]
[1752251258330,0.3582102,117220.0,117210.0,0.32496]
[1752251258769,0.34967967,117220.0,117210.0,0.32496]
[1752251259193,0.3582102,117220.0,117210.0,0.32496]
[1752251259629,0.34967967,117220.0,117210.0,0.32496]
[1752251259849,0.35821027,117220.0,117210.0,0.32496]
[1752251260061,0.3582102,117220.0,117210.0,0.32496]
[1752251262033,0.34967967,117220.0,117210.0,0.32496]
[1752251262674,0.35821027,117220.0,117210.0,0.32496]
[1752251263284,0.34114929,117220.0,117210.0,0.32496]
[1752251263506,0.34967974,117220.0,117210.0,0.32496]
[1752251263920,0.35821027,117220.0,117210.0,0.32496]
[1752251264961,0.36674101,117220.0,117210.0,0.32496]
[1752251265094,0.36674094,117220.0,117210.0,0.32496]
[1752251266793,0.3496796,117220.0,117210.0,0.32496]
[1752251266994,0.34114929,117220.0,117210.0,0.32496]
[1752251267424,0.34014929,117220.0,117210.0,0.32496]
[1752251267864,0.34014929,117220.0,117210.0,0.4955939]
[1752251268067,0.34014929,117220.0,117210.0,0.50412559]
[1752251268287,0.34014929,117220.0,117210.0,0.4955939]
[1752251268488,0.37364802,117240.0,117210.0,1.03064287]
[1752251268685,0.00900341,117230.0,117220.0,0.00297]
[1752251268892,0.00900348,117230.0,117220.0,0.00501]
[1752251269118,0.01753328,117230.0,117220.0,0.00501]
[1752251269266,0.04211431,117230.0,117220.0,0.00501]
[1752251269500,0.03459324,117230.0,117220.0,0.00501]
[1752251269909,0.20519854,117230.0,117220.0,0.00501]
[1752251270111,0.03411992,117230.0,117220.0,0.00501]
[1752251270351,0.03459375,117230.0,117220.0,0.00501]
[1752251270502,0.37459375,117230.0,117220.0,0.00501]
[1752251270708,0.37511992,117230.0,117220.0,0.00501]
[1752251270910,0.36658976,117230.0,117220.0,0.00501]
[1752251271390,0.35805938,117230.0,117220.0,0.00501]
[1752251271619,0.34952958,117230.0,117220.0,0.00501]
[1752251271836,0.341,117230.0,117220.0,0.53462544]
[1752251272019,0.341,117230.0,117220.0,0.58182544]
[1752251272226,0.34952973,117230.0,117220.0,0.58182544]
[1752251272432,0.35805967,117230.0,117220.0,0.53462544]
[1752251272596,0.37487308,117230.0,117220.0,0.53462544]
[1752251272798,0.38340302,117230.0,117220.0,0.53462544]
[1752251273006,0.38340295,117230.0,117220.0,0.53462544]
[1752251273221,0.37487308,117230.0,117220.0,0.53462544]
[1752251273428,0.38340288,117230.0,117220.0,0.53462544]
[1752251273831,0.39193282,117230.0,117220.0,0.53462544]
[1752251274005,0.00852994,117230.0,117220.0,0.00501]
[1752251274209,0.04245048,117230.0,117220.0,0.00501]
[1752251274611,0.02539095,117230.0,117220.0,0.00501]
[1752251274832,0.02539095,117230.0,117220.0,0.53462544]
[1752251275844,0.03392053,117230.0,117220.0,0.53462544]
[1752251276021,0.37392053,117230.0,117220.0,0.53462544]
[1752251276221,0.3734467,117230.0,117220.0,0.53462544]
[1752251276486,0.36491712,117230.0,117220.0,0.53462544]
[1752251276691,0.36491712,117230.0,117220.0,0.5668564]
[1752251276824,0.36491712,117230.0,117220.0,0.55832544]
[1752251278510,0.3819765,117230.0,117220.0,0.00501]
[1752251278980,0.39050644,117230.0,117220.0,0.00501]
[1752251279743,0.36491712,117230.0,117220.0,0.00501]
[1752251280107,0.37344685,117230.0,117220.0,0.00501]
[1752251280316,0.37344677,117230.0,117220.0,0.53462544]
[1752251280520,0.36491712,117230.0,117220.0,0.53462544]
[1752251280738,0.39050644,117230.0,117220.0,0.53462544]
[1752251280949,0.3819765,117230.0,117220.0,0.53462544]
[1752251281176,0.3819765,117230.0,117220.0,0.00297]
[1752251281177,0.56111189,117230.0,117220.0,0.00297]
[1752251281401,0.22111189,117230.0,117220.0,0.00297]
[1752251281853,0.05050717,117230.0,117220.0,0.00297]
[1752251282077,0.050981,117230.0,117220.0,0.00297]
[1752251282301,0.02539095,117230.0,117220.0,0.00501]
[1752251282529,0.0339206,117230.0,117220.0,0.53462544]
[1752251282949,0.05951058,117230.0,117220.0,0.53462544]